[Event "ONJK 2024 ABC"]
[Site "Velp, Netherlands"]
[Date "2024.08.07"]
[Round "7.20"]
[White "Zouridis, Christian"]
[Black "Ehrismann, Armin"]
[Result "1-0"]
[TimeControl "90 minutes + 30 seconds"]
[WhiteElo "1713"]
[BlackElo "1408"]

1. e4 {[%clk 01:30:58]} {[%emt 00:00:01]} e5 {[%clk 01:30:56]} {[%emt
00:00:04]} 2. Nf3 {[%clk 01:31:18]} {[%emt 00:00:11]} Nc6 {[%clk 01:31:21]}
{[%emt 00:00:05]} 3. Bb5 {[%clk 01:31:42]} {[%emt 00:00:05]} Bc5 {[%clk
01:31:36]} {[%emt 00:00:15]} 4. Nc3 {[%clk 01:31:48]} {[%emt 00:00:25]} d6
{[%clk 01:31:34]} {[%emt 00:00:31]} 5. h3 {[%clk 01:31:47]} {[%emt 00:00:31]}
Bd7 {[%clk 01:31:45]} {[%emt 00:00:19]} 6. d3 {[%clk 01:31:26]} {[%emt
00:00:52]} Nf6 {[%clk 01:31:22]} {[%emt 00:00:52]} 7. Bg5 {[%clk 01:31:47]}
{[%emt 00:00:10]} h6 {[%clk 01:31:22]} {[%emt 00:00:29]} 8. Bh4 {[%clk
01:31:26]} {[%emt 00:00:52]} g5 {[%clk 01:31:34]} {[%emt 00:00:18]} 9. Bg3
{[%clk 01:31:33]} {[%emt 00:00:23]} Qe7 {[%clk 01:31:05]} {[%emt 00:00:56]} 10.
a3 {[%clk 01:30:26]} {[%emt 00:01:39]} O-O-O {[%clk 01:30:55]} {[%emt
00:00:40]} 11. Na4 {[%clk 01:28:58]} {[%emt 00:01:58]} d5 {[%clk 01:29:00]}
{[%emt 00:02:26]} 12. Qe2 {[%clk 01:26:53]} {[%emt 00:02:33]} d4 {[%clk
01:28:40]} {[%emt 00:00:51]} 13. Bxc6 {[%clk 01:21:42]} {[%emt 00:05:41]} Bxc6
{[%clk 01:28:19]} {[%emt 00:00:52]} 14. Nxc5 {[%clk 01:21:13]} {[%emt
00:00:59]} Qxc5 {[%clk 01:27:51]} {[%emt 00:00:57]} 15. Bxe5 {[%clk 01:21:28]}
{[%emt 00:00:15]} Qe7 {[%clk 01:26:51]} {[%emt 00:01:31]} 16. Bxd4 {[%clk
01:21:31]} {[%emt 00:00:27]} b6 {[%clk 01:26:23]} {[%emt 00:00:57]} 17. O-O-O
{[%clk 01:17:13]} {[%emt 00:04:48]} Bd7 {[%clk 01:26:19]} {[%emt 00:00:34]} 18.
Qd2 {[%clk 01:16:26]} {[%emt 00:01:16]} g4 {[%clk 01:25:43]} {[%emt 00:01:07]}
19. hxg4 {[%clk 01:15:58]} {[%emt 00:00:58]} Bxg4 {[%clk 01:25:58]} {[%emt
00:00:15]} 20. Qc3 {[%clk 01:16:13]} {[%emt 00:00:16]} Rd6 {[%clk 01:24:54]}
{[%emt 00:01:30]} 21. e5 {[%clk 01:14:41]} {[%emt 00:02:05]} Nd5 {[%clk
01:23:07]} {[%emt 00:02:17]} 22. exd6 {[%clk 01:14:56]} {[%emt 00:00:15]} Nxc3
{[%clk 01:23:26]} {[%emt 00:00:11]} 23. dxe7 {[%clk 01:15:16]} {[%emt
00:00:11]} Nxd1 {[%clk 01:23:26]} {[%emt 00:00:30]} 24. Bxh8 {[%clk 01:15:33]}
{[%emt 00:00:13]} Kd7 {[%clk 01:23:21]} {[%emt 00:00:34]} 25. Re1 {[%clk
01:15:46]} {[%emt 00:00:17]} Be6 {[%clk 01:23:26]} {[%emt 00:00:25]} 26. Kxd1
{[%clk 01:15:52]} {[%emt 00:00:25]} Kxe7 {[%clk 01:23:43]} {[%emt 00:00:13]} 27.
Nd4 {[%clk 01:16:13]} {[%emt 00:00:09]} Kd7 {[%clk 01:23:57]} {[%emt 00:00:16]}
28. Nxe6 {[%clk 01:16:36]} {[%emt 00:00:07]} fxe6 {[%clk 01:24:15]} {[%emt
00:00:12]} 29. Rh1 {[%clk 01:16:57]} {[%emt 00:00:08]} a5 {[%clk 01:24:33]}
{[%emt 00:00:12]} 30. Rxh6 {[%clk 01:17:20]} {[%emt 00:00:07]} a4 {[%clk
01:24:55]} {[%emt 00:00:08]} 31. Bc3 {[%clk 01:17:36]} {[%emt 00:00:14]} c5
{[%clk 01:25:18]} {[%emt 00:00:08]} 32. g4 {[%clk 01:17:50]} {[%emt 00:00:15]}
c4 {[%clk 01:25:37]} {[%emt 00:00:11]} 33. g5 {[%clk 01:18:02]} {[%emt
00:00:18]} b5 {[%clk 01:25:45]} {[%emt 00:00:22]} 34. g6 {[%clk 01:18:26]}
{[%emt 00:00:06]} b4 {[%clk 01:26:13]} {[%emt 00:00:03]} 35. Bxb4 {[%clk
01:18:37]} {[%emt 00:00:18]} cxd3 {[%clk 01:26:22]} {[%emt 00:00:21]} 36. cxd3
{[%clk 01:18:52]} {[%emt 00:00:15]} e5 {[%clk 01:26:45]} {[%emt 00:00:07]} 37.
g7 {[%clk 01:19:10]} {[%emt 00:00:11]} e4 {[%clk 01:27:07]} {[%emt 00:00:08]}
38. g8=Q {[%clk 01:19:26]} {[%emt 00:00:16]} exd3 {[%clk 01:27:28]} {[%emt
00:00:09]} 39. Qf7+ {[%clk 01:19:44]} {[%emt 00:00:11]} Kd8 {[%clk 01:27:43]}
{[%emt 00:00:15]} 40. Rh8# {[%clk 01:19:30]} {[%emt 00:00:14]} 1-0

[Event "ONJK 2024 ABC"]
[Site "Velp, Netherlands"]
[Date "2024.08.07"]
[Round "8.1"]
[White "Musabayeva, Diana"]
[Black "Decraene, Lotus"]
[Result "0-1"]
[TimeControl "90 minutes + 30 seconds"]
[WhiteElo "1871"]
[BlackElo "1799"]

1. e4 {[%clk 01:30:59]} c5 {[%clk 01:30:54]} 2. Nf3 {[%clk 01:31:25]} d6 {[%clk
01:31:15]} 3. d4 {[%clk 01:31:52]} cxd4 {[%clk 01:31:37]} 4. Nxd4 {[%clk
01:32:20]} Nf6 {[%clk 01:31:57]} 5. Nc3 {[%clk 01:32:48]} a6 {[%clk 01:32:17]}
6. f3 {[%clk 01:33:14]} e5 {[%clk 01:31:46]} 7. Nb3 {[%clk 01:27:12]} Be6
{[%clk 01:31:06]} 8. Be3 {[%clk 01:27:11]} Nbd7 {[%clk 01:31:05]} 9. Qd2 {[%clk
01:26:54]} Be7 {[%clk 01:27:11]} 10. g4 {[%clk 01:26:09]} O-O {[%clk 01:24:39]}
11. O-O-O {[%clk 01:23:56]} b5 {[%clk 01:23:58]} 12. g5 {[%clk 01:18:50]} Nh5
{[%clk 01:11:38]} 13. Ne2 {[%clk 01:07:28]} g6 {[%clk 01:00:38]} 14. Ng3 {[%clk
01:04:25]} Ng7 {[%clk 00:57:04]} 15. h4 {[%clk 01:00:56]} Re8 {[%clk 00:54:02]}
16. h5 {[%clk 00:55:26]} Bxb3 {[%clk 00:51:44]} 17. axb3 {[%clk 00:53:23]} Nf8
{[%clk 00:51:59]} 18. Bh3 {[%clk 00:48:20]} Nge6 {[%clk 00:33:00]} 19. hxg6
{[%clk 00:46:02]} fxg6 {[%clk 00:32:47]} 20. Bxe6+ {[%clk 00:33:29]} Nxe6
{[%clk 00:32:47]} 21. Qh2 {[%clk 00:32:17]} Nf8 {[%clk 00:32:06]} 22. Qh6
{[%clk 00:30:56]} Qc7 {[%clk 00:25:59]} 23. f4 {[%clk 00:27:59]} exf4 {[%clk
00:25:26]} 24. Bxf4 {[%clk 00:28:15]} Rac8 {[%clk 00:24:35]} 25. Rh2 {[%clk
00:27:30]} a5 {[%clk 00:22:18]} 26. Rd5 {[%clk 00:23:40]} b4 {[%clk 00:19:47]}
27. Kb1 {[%clk 00:11:57]} a4 {[%clk 00:16:52]} 28. Rd3 {[%clk 00:09:12]} axb3
{[%clk 00:15:48]} 29. Rxb3 {[%clk 00:08:01]} Ra8 {[%clk 00:15:13]} {[%emt
00:00:20]} 30. Be3 {[%clk 00:07:17]} {[%emt 00:01:15]} Qa5 {[%clk 00:14:01]}
{[%emt 00:01:42]} 31. Kc1 {[%clk 00:07:33]} {[%emt 00:00:14]} Qe5 {[%clk
00:13:12]} {[%emt 00:01:19]} 32. Ne2 {[%clk 00:05:47]} {[%emt 00:02:16]} Ra1+
{[%clk 00:11:06]} {[%emt 00:02:36]} 33. Kd2 {[%clk 00:06:15]} {[%emt 00:00:02]}
Rc8 {[%clk 00:10:39]} {[%emt 00:00:57]} 34. Rxb4 {[%clk 00:05:40]} {[%emt
00:01:05]} d5 {[%clk 00:08:38]} {[%emt 00:02:30]} 35. Rb5 {[%clk 00:04:16]}
{[%emt 00:01:54]} Qxe4 {[%clk 00:08:05]} {[%emt 00:01:04]} 36. Nd4 {[%clk
00:03:29]} {[%emt 00:01:17]} Qg4 {[%clk 00:07:05]} {[%emt 00:01:28]} 37. Ne2
{[%clk 00:03:03]} {[%emt 00:00:57]} Qc4 {[%clk 00:05:43]} {[%emt 00:01:52]} 38.
Nd4 {[%clk 00:02:27]} {[%emt 00:01:06]} Qf1 {[%clk 00:05:13]} {[%emt 00:01:00]}
39. Bf2 {[%clk 00:02:04]} {[%emt 00:00:54]} Rd1+ {[%clk 00:03:16]} {[%emt
00:02:28]} 40. Ke3 {[%clk 00:02:30]} {[%emt 00:00:04]} Rxd4 {[%clk 00:03:13]}
{[%emt 00:00:32]} 41. Kxd4 {[%clk 00:02:35]} {[%emt 00:00:26]} Qc4+ {[%clk
00:02:52]} {[%emt 00:00:50]} 42. Ke3 {[%clk 00:02:29]} {[%emt 00:00:36]} Qe4+
{[%clk 00:02:57]} {[%emt 00:00:26]} 43. Kd2 {[%clk 00:02:45]} {[%emt 00:00:13]}
Rxc2+ {[%clk 00:03:15]} {[%emt 00:00:12]} 44. Kd1 {[%clk 00:03:06]} {[%emt
00:00:10]} Qe2# {[%clk 00:03:00]} 0-1

[Event "ONJK 2024 ABC"]
[Site "Velp, Netherlands"]
[Date "2024.08.07"]
[Round "8.2"]
[White "Elferink, Leon"]
[Black "Ganeshram, Nirupa"]
[Result "1-0"]
[TimeControl "90 minutes + 30 seconds"]
[WhiteElo "1900"]
[BlackElo "1695"]

1. e4 {[%clk 01:30:57]} {[%emt 00:00:03]} c5 {[%clk 01:30:54]} {[%emt
00:00:07]} 2. Nf3 {[%clk 01:31:23]} {[%emt 00:00:03]} d6 {[%clk 01:31:15]}
{[%emt 00:00:09]} 3. Nc3 {[%clk 01:31:30]} {[%emt 00:00:22]} Nc6 {[%clk
01:31:09]} {[%emt 00:00:36]} 4. d4 {[%clk 01:31:54]} {[%emt 00:00:06]} cxd4
{[%clk 01:31:33]} {[%emt 00:00:06]} 5. Nxd4 {[%clk 01:32:19]} {[%emt 00:00:05]}
g6 {[%clk 01:30:57]} {[%emt 00:01:06]} 6. Be3 {[%clk 01:31:36]} {[%emt
00:01:13]} Nf6 {[%clk 01:30:17]} {[%emt 00:01:11]} 7. Be2 {[%clk 01:29:25]}
{[%emt 00:02:40]} Bg7 {[%clk 01:30:09]} {[%emt 00:00:38]} 8. O-O {[%clk
01:29:35]} {[%emt 00:00:20]} O-O {[%clk 01:29:08]} {[%emt 00:01:31]} 9. h3
{[%clk 01:27:31]} {[%emt 00:02:34]} Bd7 {[%clk 01:28:30]} {[%emt 00:01:08]} 10.
Qd2 {[%clk 01:26:44]} {[%emt 00:01:17]} a6 {[%clk 01:26:11]} {[%emt 00:02:49]}
11. f4 {[%clk 01:26:05]} {[%emt 00:01:08]} Rc8 {[%clk 01:25:49]} {[%emt
00:00:52]} 12. g4 {[%clk 01:22:20]} {[%emt 00:04:15]} b5 {[%clk 01:20:56]}
{[%emt 00:05:23]} 13. a3 {[%clk 01:21:55]} {[%emt 00:00:56]} Na5 {[%clk
01:17:08]} {[%emt 00:04:17]} 14. f5 {[%clk 01:17:57]} {[%emt 00:04:28]} Nc4
{[%clk 01:11:40]} {[%emt 00:05:59]} 15. Bxc4 {[%clk 01:17:55]} {[%emt
00:00:32]} Rxc4 {[%clk 01:11:39]} {[%emt 00:00:31]} 16. Rad1 {[%clk 01:15:05]}
{[%emt 00:03:19]} Qb8 {[%clk 00:55:58]} {[%emt 00:16:11]} 17. b3 {[%clk
01:06:19]} {[%emt 00:09:16]} Rcc8 {[%clk 00:55:02]} {[%emt 00:01:27]} 18. Nd5
{[%clk 01:05:59]} {[%emt 00:00:50]} Nxd5 {[%clk 00:52:40]} {[%emt 00:02:51]} 19.
exd5 {[%clk 01:06:11]} {[%emt 00:00:19]} Qc7 {[%clk 00:50:57]} {[%emt
00:02:13]} 20. Rf2 {[%clk 01:04:09]} {[%emt 00:02:32]} Qc3 {[%clk 00:46:12]}
{[%emt 00:05:15]} 21. fxg6 {[%clk 00:51:18]} {[%emt 00:13:21]} hxg6 {[%clk
00:45:16]} {[%emt 00:01:25]} 22. Qe2 {[%clk 00:49:55]} {[%emt 00:01:53]} Qb2
{[%clk 00:37:43]} {[%emt 00:08:04]} 23. Bc1 {[%clk 00:44:19]} {[%emt 00:06:06]}
Qc3 {[%clk 00:30:48]} {[%emt 00:07:25]} 24. Be3 {[%clk 00:39:45]} {[%emt
00:05:04]} Qb2 {[%clk 00:30:26]} {[%emt 00:00:52]} 25. h4 {[%clk 00:33:32]}
{[%emt 00:06:43]} Qxa3 {[%clk 00:15:09]} {[%emt 00:15:48]} 26. h5 {[%clk
00:33:10]} {[%emt 00:00:52]} e5 {[%clk 00:09:50]} {[%emt 00:05:49]} 27. dxe6
{[%clk 00:31:15]} {[%emt 00:02:25]} fxe6 {[%clk 00:09:26]} {[%emt 00:00:54]} 28.
hxg6 {[%clk 00:31:24]} {[%emt 00:00:21]} e5 {[%clk 00:06:37]} {[%emt 00:03:19]}
29. Nf5 {[%clk 00:27:22]} {[%emt 00:04:32]} Bxf5 {[%clk 00:05:53]} {[%emt
00:01:15]} 30. gxf5 {[%clk 00:27:34]} {[%emt 00:00:17]} Bf6 {[%clk 00:04:07]}
{[%emt 00:02:16]} 31. Qf3 {[%clk 00:23:26]} {[%emt 00:04:38]} Kg7 {[%clk
00:02:46]} {[%emt 00:01:51]} 32. Qb7+ {[%clk 00:23:00]} {[%emt 00:00:56]} Kg8
{[%clk 00:02:19]} {[%emt 00:00:57]} 33. Qh7# {[%clk 00:23:23]} {[%emt
00:00:06]} 1-0

[Event "ONJK 2024 ABC"]
[Site "Velp, Netherlands"]
[Date "2024.08.07"]
[Round "8.3"]
[White "Faybish, Dana"]
[Black "Rogozyanskiy, Alexander"]
[Result "0-1"]
[TimeControl "90 minutes + 30 seconds"]
[WhiteElo "1707"]
[BlackElo "1803"]

1. e4 {[%clk 01:30:57]} {[%emt 00:00:03]} c5 {[%clk 01:30:55]} {[%emt
00:00:05]} 2. d4 {[%clk 01:31:13]} {[%emt 00:00:14]} cxd4 {[%clk 01:31:18]}
{[%emt 00:00:07]} 3. c3 {[%clk 01:31:30]} {[%emt 00:00:13]} dxc3 {[%clk
01:31:40]} {[%emt 00:00:08]} 4. Nxc3 {[%clk 01:31:51]} {[%emt 00:00:09]} Nc6
{[%clk 01:32:07]} {[%emt 00:00:02]} 5. Nf3 {[%clk 01:31:49]} {[%emt 00:00:33]}
d6 {[%clk 01:32:30]} {[%emt 00:00:08]} 6. Bc4 {[%clk 01:31:54]} {[%emt
00:00:25]} a6 {[%clk 01:32:54]} {[%emt 00:00:06]} 7. h3 {[%clk 01:25:09]}
{[%emt 00:07:14]} Nf6 {[%clk 01:33:01]} {[%emt 00:00:23]} 8. e5 {[%clk
01:24:37]} {[%emt 00:01:02]} dxe5 {[%clk 01:30:12]} {[%emt 00:03:19]} 9. Qxd8+
{[%clk 01:22:54]} {[%emt 00:02:13]} Nxd8 {[%clk 01:30:34]} {[%emt 00:00:08]} 10.
Nxe5 {[%clk 01:20:53]} {[%emt 00:02:32]} Be6 {[%clk 01:30:00]} {[%emt
00:01:03]} 11. Bd3 {[%clk 01:19:13]} {[%emt 00:02:09]} g6 {[%clk 01:26:30]}
{[%emt 00:04:00]} 12. O-O {[%clk 01:18:48]} {[%emt 00:00:56]} Bg7 {[%clk
01:25:31]} {[%emt 00:01:29]} 13. Bf4 {[%clk 01:16:51]} {[%emt 00:02:27]} Nd5
{[%clk 01:23:36]} {[%emt 00:02:25]} 14. Nxd5 {[%clk 01:13:53]} {[%emt
00:03:28]} Bxd5 {[%clk 01:23:47]} {[%emt 00:00:19]} 15. Rfe1 {[%clk 01:00:41]}
{[%emt 00:13:41]} Nc6 {[%clk 01:16:57]} {[%emt 00:07:21]} 16. Nxc6 {[%clk
00:59:16]} {[%emt 00:01:55]} Bxc6 {[%clk 01:15:28]} {[%emt 00:01:59]} 17. Bd6
{[%clk 00:52:39]} {[%emt 00:07:07]} O-O-O {[%clk 01:14:58]} {[%emt 00:01:00]}
18. Rxe7 {[%clk 00:49:25]} {[%emt 00:03:44]} Rxd6 {[%clk 01:15:01]} {[%emt
00:00:27]} 19. Bc4 {[%clk 00:48:29]} {[%emt 00:01:26]} Rd7 {[%clk 01:13:07]}
{[%emt 00:02:23]} 20. Re2 {[%clk 00:44:37]} {[%emt 00:04:21]} Rhd8 {[%clk
01:13:02]} {[%emt 00:00:36]} 21. Rc1 {[%clk 00:44:05]} {[%emt 00:01:03]} Bh6
{[%clk 01:12:05]} {[%emt 00:01:27]} 22. Rcc2 {[%clk 00:42:40]} {[%emt
00:01:55]} Rd1+ {[%clk 01:12:26]} {[%emt 00:00:09]} 23. Kh2 {[%clk 00:42:47]}
{[%emt 00:00:22]} Bf4+ {[%clk 01:12:50]} {[%emt 00:00:07]} 24. g3 {[%clk
00:42:28]} {[%emt 00:00:18]} 0-1

[Event "ONJK 2024 ABC"]
[Site "Velp, Netherlands"]
[Date "2024.08.07"]
[Round "8.4"]
[White "Bernfeld, Ben"]
[Black "De Vries, Arjan"]
[Result "0-1"]
[TimeControl "90 minutes + 30 seconds"]
[WhiteElo "1438"]
[BlackElo "1843"]

1. e4 {[%clk 01:31:00]} {[%emt 01:11:09]} d5 {[%clk 01:30:56]} {[%emt
00:00:05]} 2. exd5 {[%clk 01:31:25]} {[%emt 00:00:05]} Qxd5 {[%clk 01:31:23]}
{[%emt 00:00:03]} 3. Nc3 {[%clk 01:31:36]} {[%emt 00:00:19]} Qa5 {[%clk
01:31:47]} {[%emt 00:00:06]} 4. Bc4 {[%clk 01:31:52]} {[%emt 00:00:13]} e5
{[%clk 01:31:08]} {[%emt 00:01:09]} 5. d3 {[%clk 01:31:52]} {[%emt 00:00:31]}
Nf6 {[%clk 01:30:10]} {[%emt 00:01:27]} 6. Bd2 {[%clk 01:30:47]} {[%emt
00:01:35]} c6 {[%clk 01:29:53]} {[%emt 00:00:46]} 7. Nf3 {[%clk 01:27:31]}
{[%emt 00:03:47]} Bg4 {[%clk 01:29:12]} {[%emt 00:01:11]} 8. h3 {[%clk
01:26:52]} {[%emt 00:01:09]} Bh5 {[%clk 01:29:15]} {[%emt 00:00:27]} 9. Ne2
{[%clk 01:24:23]} {[%emt 00:03:00]} Qc7 {[%clk 01:28:36]} {[%emt 00:01:08]} 10.
Ng3 {[%clk 01:24:00]} {[%emt 00:00:53]} Bg6 {[%clk 01:28:48]} {[%emt 00:00:19]}
11. O-O {[%clk 01:22:44]} {[%emt 00:01:46]} Bd6 {[%clk 01:28:23]} {[%emt
00:00:55]} 12. Bc3 {[%clk 01:21:39]} {[%emt 00:01:34]} Nbd7 {[%clk 01:27:01]}
{[%emt 00:01:52]} 13. Re1 {[%clk 01:18:37]} {[%emt 00:03:33]} O-O-O {[%clk
01:27:09]} {[%emt 00:00:22]} 14. b4 {[%clk 01:15:25]} {[%emt 00:03:42]} e4
{[%clk 01:22:55]} {[%emt 00:04:44]} 15. Nd2 {[%clk 01:08:14]} {[%emt 00:07:41]}
exd3 {[%clk 01:21:32]} {[%emt 00:01:53]} 16. Bxd3 {[%clk 01:02:50]} {[%emt
00:05:54]} Bxd3 {[%clk 01:21:56]} {[%emt 00:00:05]} 17. cxd3 {[%clk 01:03:16]}
{[%emt 00:00:04]} Bxg3 {[%clk 01:22:16]} {[%emt 00:00:11]} 18. fxg3 {[%clk
01:03:28]} {[%emt 00:00:17]} Qxg3 {[%clk 01:22:41]} {[%emt 00:00:05]} 19. Qc2
{[%clk 00:57:53]} {[%emt 00:06:05]} Rhe8 {[%clk 01:18:34]} {[%emt 00:04:38]} 20.
Nf3 {[%clk 00:52:16]} {[%emt 00:06:07]} Nd5 {[%clk 01:17:20]} {[%emt 00:01:44]}
21. Bd4 {[%clk 00:47:46]} {[%emt 00:04:59]} Nf4 {[%clk 01:16:22]} {[%emt
00:01:27]} 22. Kf1 {[%clk 00:38:59]} {[%emt 00:09:18]} Kb8 {[%clk 01:13:14]}
{[%emt 00:03:38]} 23. Ne5 {[%clk 00:33:15]} {[%emt 00:06:14]} Nxe5 {[%clk
01:05:43]} {[%emt 00:08:01]} 24. Bxe5+ {[%clk 00:32:16]} {[%emt 00:01:29]} Ka8
{[%clk 01:06:01]} {[%emt 00:00:12]} 25. Re4 {[%clk 00:29:48]} {[%emt 00:02:58]}
Qxd3+ {[%clk 01:06:10]} {[%emt 00:00:21]} 26. Qxd3 {[%clk 00:29:33]} {[%emt
00:00:45]} Nxd3 {[%clk 01:06:35]} {[%emt 00:00:05]} 27. Rd1 {[%clk 00:28:56]}
{[%emt 00:01:07]} Nxe5 {[%clk 01:05:52]} {[%emt 00:01:14]} 28. Rxd8+ {[%clk
00:27:17]} {[%emt 00:02:09]} Rxd8 {[%clk 01:06:17]} {[%emt 00:00:04]} 29. Rxe5
{[%clk 00:27:43]} {[%emt 00:00:05]} a6 {[%clk 01:06:15]} {[%emt 00:00:32]} 30.
Ke2 {[%clk 00:26:20]} {[%emt 00:01:52]} Rd7 {[%clk 01:06:31]} {[%emt 00:00:14]}
31. Re8+ {[%clk 00:20:01]} {[%emt 00:06:50]} Ka7 {[%clk 01:06:55]} {[%emt
00:00:06]} 32. Re5 {[%clk 00:19:58]} {[%emt 00:00:33]} Kb6 {[%clk 01:07:18]}
{[%emt 00:00:06]} 33. a4 {[%clk 00:19:49]} {[%emt 00:00:40]} Kc7 {[%clk
01:07:43]} {[%emt 00:00:05]} 34. Re4 {[%clk 00:19:43]} {[%emt 00:00:36]} h6
{[%clk 01:07:58]} {[%emt 00:00:15]} 35. Rf4 {[%clk 00:17:05]} {[%emt 00:03:08]}
Kd6 {[%clk 01:08:00]} {[%emt 00:00:28]} 36. Rd4+ {[%clk 00:17:05]} {[%emt
00:00:30]} Ke6 {[%clk 01:08:25]} {[%emt 00:00:05]} 37. Re4+ {[%clk 00:17:30]}
{[%emt 00:00:05]} Kd5 {[%clk 01:08:50]} {[%emt 00:00:05]} 38. Re3 {[%clk
00:17:45]} {[%emt 00:00:15]} Kc4 {[%clk 01:09:10]} {[%emt 00:00:09]} 39. Re4+
{[%clk 00:17:55]} {[%emt 00:00:20]} Kb3 {[%clk 01:09:26]} {[%emt 00:00:14]} 40.
a5 {[%clk 00:17:56]} {[%emt 00:00:29]} Kc3 {[%clk 01:09:52]} {[%emt 00:00:05]}
41. Kf3 {[%clk 00:17:41]} {[%emt 00:00:45]} Rd3 {[%clk 01:09:19]} {[%emt
00:01:03]} 42. Kf2 {[%clk 00:17:01]} {[%emt 00:01:09]} Rd7 {[%clk 01:09:18]}
{[%emt 00:00:31]} 43. Kf3 {[%clk 00:17:05]} {[%emt 00:00:26]} f5 {[%clk
01:09:23]} {[%emt 00:00:26]} 44. Rf4 {[%clk 00:16:25]} {[%emt 00:01:10]} Rf7
{[%clk 01:09:46]} {[%emt 00:00:07]} 45. g4 {[%clk 00:16:27]} {[%emt 00:00:28]}
fxg4 {[%clk 01:10:10]} {[%emt 00:00:06]} 46. hxg4 {[%clk 00:16:46]} {[%emt
00:00:10]} Rxf4 {[%clk 01:10:28]} {[%emt 00:00:12]} 47. Kxf4 {[%clk 00:17:10]}
{[%emt 00:00:07]} g6 {[%clk 01:10:56]} {[%emt 00:00:02]} 48. Ke5 {[%clk
00:17:16]} {[%emt 00:00:24]} h5 {[%clk 01:11:21]} {[%emt 00:00:05]} 49. g5
{[%clk 00:17:19]} {[%emt 00:00:26]} h4 {[%clk 01:11:47]} {[%emt 00:00:04]} 50.
Kf4 {[%clk 00:17:18]} {[%emt 00:00:31]} Kxb4 {[%clk 01:12:11]} {[%emt
00:00:07]} 51. Ke5 {[%emt 00:00:20]} 0-1

[Event "ONJK 2024 ABC"]
[Site "Velp, Netherlands"]
[Date "2024.08.07"]
[Round "8.5"]
[White "Hesse, Lucas"]
[Black "Blokzijl, Ruben"]
[Result "1/2-1/2"]
[TimeControl "90 minutes + 30 seconds"]
[WhiteElo "1708"]
[BlackElo "1743"]

1. e4 {[%clk 01:30:59]} {[%emt 00:00:01]} e5 {[%clk 01:30:55]} {[%emt
00:00:05]} 2. Nf3 {[%clk 01:31:25]} {[%emt 00:00:04]} Nc6 {[%clk 01:31:20]}
{[%emt 00:00:04]} 3. Bc4 {[%clk 01:31:52]} {[%emt 00:00:04]} Bc5 {[%clk
01:31:45]} {[%emt 00:00:05]} 4. c3 {[%clk 01:32:19]} {[%emt 00:00:04]} Nf6
{[%clk 01:31:56]} {[%emt 00:00:18]} 5. d4 {[%clk 01:32:38]} {[%emt 00:00:10]}
exd4 {[%clk 01:32:21]} {[%emt 00:00:05]} 6. cxd4 {[%clk 01:33:04]} {[%emt
00:00:04]} Bb4+ {[%clk 01:32:46]} {[%emt 00:00:05]} 7. Bd2 {[%clk 01:33:24]}
{[%emt 00:00:11]} Bxd2+ {[%clk 01:32:49]} {[%emt 00:00:27]} 8. Nbxd2 {[%clk
01:33:49]} {[%emt 00:00:06]} d5 {[%clk 01:33:02]} {[%emt 00:00:16]} 9. exd5
{[%clk 01:33:09]} {[%emt 00:01:10]} Nxd5 {[%clk 01:33:21]} {[%emt 00:00:10]} 10.
Qb3 {[%clk 01:32:36]} {[%emt 00:01:04]} Nce7 {[%clk 01:33:40]} {[%emt
00:00:12]} 11. O-O {[%clk 01:31:13]} {[%emt 00:01:52]} O-O {[%clk 01:33:18]}
{[%emt 00:00:51]} 12. Rfe1 {[%clk 01:28:58]} {[%emt 00:02:45]} c6 {[%clk
01:30:07]} {[%emt 00:03:41]} 13. a4 {[%clk 01:26:01]} {[%emt 00:03:28]} a5
{[%clk 01:28:33]} {[%emt 00:02:04]} 14. Ne4 {[%clk 01:23:23]} {[%emt 00:03:08]}
Nb6 {[%clk 01:25:46]} {[%emt 00:03:16]} 15. Bxf7+ {[%clk 01:20:37]} {[%emt
00:03:17]} Rxf7 {[%clk 01:25:58]} {[%emt 00:00:17]} 16. Nfg5 {[%clk 01:20:58]}
{[%emt 00:00:09]} Ned5 {[%clk 01:24:08]} {[%emt 00:02:20]} 17. Nxf7 {[%clk
01:21:05]} {[%emt 00:00:24]} Kxf7 {[%clk 01:24:25]} {[%emt 00:00:12]} 18. Qf3+
{[%clk 01:20:41]} {[%emt 00:00:54]} Nf6 {[%clk 01:20:45]} {[%emt 00:04:10]} 19.
h3 {[%clk 01:17:30]} {[%emt 00:03:42]} Nbd5 {[%clk 01:18:32]} {[%emt 00:02:42]}
20. Rad1 {[%clk 01:09:38]} {[%emt 00:08:23]} Kg8 {[%clk 01:17:08]} {[%emt
00:01:54]} 21. g4 {[%clk 01:04:03]} {[%emt 00:06:05]} Nxe4 {[%clk 01:16:06]}
{[%emt 00:01:31]} 22. Rxe4 {[%clk 01:04:11]} {[%emt 00:00:23]} Bd7 {[%clk
01:13:17]} {[%emt 00:03:19]} 23. Rde1 {[%clk 01:01:27]} {[%emt 00:03:14]} Qf8
{[%clk 01:02:45]} {[%emt 00:11:02]} 24. Qb3 {[%clk 00:59:54]} {[%emt 00:02:03]}
Qb4 {[%clk 01:01:58]} {[%emt 00:01:18]} 25. R1e3 {[%clk 00:52:47]} {[%emt
00:07:35]} b6 {[%clk 00:57:04]} {[%emt 00:05:25]} 26. Rf3 {[%clk 00:48:41]}
{[%emt 00:04:36]} Re8 {[%clk 00:54:24]} {[%emt 00:03:10]} 27. Rxe8+ {[%clk
00:42:24]} {[%emt 00:06:47]} Bxe8 {[%clk 00:54:36]} {[%emt 00:00:18]} 28. Qd3
{[%clk 00:42:36]} {[%emt 00:00:14]} Qe7 {[%clk 00:36:03]} {[%emt 00:19:06]} 29.
Qf5 {[%clk 00:38:18]} {[%emt 00:04:49]} Bg6 {[%clk 00:30:37]} {[%emt 00:05:56]}
30. Qc8+ {[%clk 00:29:00]} {[%emt 00:09:48]} Qe8 {[%clk 00:30:44]} {[%emt
00:00:23]} 31. Qb7 {[%clk 00:27:42]} {[%emt 00:01:48]} Bc2 {[%clk 00:24:49]}
{[%emt 00:06:26]} 32. h4 {[%clk 00:22:02]} {[%emt 00:06:10]} Bxa4 {[%clk
00:14:19]} {[%emt 00:10:59]} 33. Rf5 {[%clk 00:20:35]} {[%emt 00:01:57]} Bb5
{[%clk 00:12:49]} {[%emt 00:02:00]} 34. Re5 {[%clk 00:18:21]} {[%emt 00:02:44]}
Qf8 {[%clk 00:13:09]} {[%emt 00:00:09]} 35. Rf5 {[%clk 00:18:00]} {[%emt
00:00:52]} Qe8 {[%clk 00:12:58]} {[%emt 00:00:42]} 36. Re5 {[%clk 00:18:24]}
{[%emt 00:00:06]} Qf8 {[%clk 00:13:13]} {[%emt 00:00:14]} 37. Rf5 {[%clk
00:18:49]} {[%emt 00:00:06]} Qe8 {[%clk 00:12:12]} {[%emt 00:01:30]} 1/2-1/2